Cogmind - Beta 10.2 @@@ ROGUE MODE // 2020.12.14 @ 14:15:58 Player: CrossedViper Result: Self-destructed Performance ------------- Evolutions (1) 500 Regions Visited (3) 600 Robots Destroyed (9) 45 Value Destroyed (164) 164 Prototype IDs (0) 0 Alien Tech Used (0) 0 Bonus (0) 0 TOTAL SCORE: 1309 Bonus ------- None Cogmind --------- Core Integrity 378/400 Matter 300/300 Energy 42/100 System Corruption 0% Temperature Cool (20) Movement Treading (160) Location -9/Materials Parts ------- > --- POWER (1) -------- (None) > --- PROPULSION (2) --- Light Treads Light Treads > --- UTILITY (4) ------ Small Storage Unit > --- WEAPON (2) ------- Beam Rifle Particle Cannon > --- INVENTORY (6) ---- Light Ion Engine Wheel Wheel Shield Generator Peak State ------------ > --- POWER ------------ (None) > --- PROPULSION ------- Light Treads Light Treads > --- UTILITY ---------- Small Storage Unit > --- WEAPON ----------- Beam Rifle Particle Cannon > --- INVENTORY -------- Light Ion Engine Wheel Wheel Shield Generator [Rating: 7] Favorites ----------- Power Ion Engine Engine Ion Engine Propulsion Light Treads Treads Light Treads Leg Aluminum Leg Utility Small Storage Unit Storage Small Storage Unit Weapon Light Assault Rifle Energy Gun Small Laser Energy Cannon Particle Cannon Ballistic Gun Light Assault Rifle Build | -11 -10 -10 -9 ------- Run | Scr Mat Min Mat Slots Evolved 2 | . . . 2 Power . | . . . . Propulsion . | . . . . Utility 2 | . . . 2 Weapon . | . . . . Parts Attached 5 | . 1 2 2 Power . | . . . . Engine . | . . . . Core . | . . . . Reactor . | . . . . Propulsion 2 | . . 2 . Treads 2 | . . 2 . Leg . | . . . . Wheel . | . . . . Hover . | . . . . Flight . | . . . . Utility . | . . . . Device . | . . . . Storage . | . . . . Processor . | . . . . Hackware . | . . . . Protection . | . . . . Artifact . | . . . . Weapon 3 | . 1 . 2 Energy Gun 1 | . . . 1 Energy Cannon 1 | . . . 1 Ballistic Gun 1 | . 1 . . Ballistic Cannon . | . . . . Launcher . | . . . . Special Weapon . | . . . . Impact Weapon . | . . . . Slashing Weapon . | . . . . Piercing Weapon . | . . . . Special Melee Weapon . | . . . . Unidentified Prototypes . | . . . . Parts Lost 5 | . 2 3 . Power 1 | . . 1 . Propulsion 1 | . . 1 . Utility . | . . . . Weapon 3 | . 2 1 . Highest Loss Streak 2 | . 1 2 . Average Slot Usage (%) 61 | . 80 57 45 Engine 8 | . 14 11 . Treads 13 | . . 22 22 Leg 11 | . 28 6 . Storage 12 | . 14 14 11 Energy Gun 7 | . 13 . 6 Energy Cannon 2 | . . . 6 Ballistic Gun 4 | . 10 4 . Naked Turns . | . . . . Heaviest Build 12 | 12 12 10 11 Greatest Support 40 | 20 20 40 40 Greatest Overweight (x) . | . . . . Average Overweight (x) . | . . . . Largest Inventory Capacity 6 | . 6 6 6 Average Capacity 6 | . 6 6 6 Most Carried 6 | . 6 5 6 Average Carried 4 | . 5 3 4 Final Capacity 6 | 6 6 6 6 Final Carried 6 | 6 5 3 4 Class Distribution -------------------- 100% | Mutant Dominant Class ---------------- Mutant | -10/Materials Mutant | -10/Mines Mutant | -9/Materials Resources | -11 -10 -10 -9 ----------- Run | Scr Mat Min Mat Matter Collected 242 | 200 12 . 30 Remotely . | . . . . Salvage Created 280 | . 95 . 185 Parts 10 | . 6 . 4 Haulers Intercepted 1 | . . . 1 Recyclers Shooed 1 | . . . 1 Parts Field Recycled . | . . . . Retrieved Matter . | . . . . Parts Self-Destructed . | . . . . Prevented . | . . . . Kills | -11 -10 -10 -9 ------- Run | Scr Mat Min Mat Combat Hostiles Destroyed 6 | . 3 . 3 Guns 4 | . 3 . 1 Cannons 2 | . . . 2 Classes Destroyed 5 | . 3 . 2 Worker 1 | . 1 . . Builder 1 | . . . 1 Hauler 1 | . . . 1 Swarmer 2 | . 2 . . Grunt 4 | . 1 . 3 Best Kill Streak 4 | . 4 . 3 Combat Bots Only 3 | . 2 . 3 Max Kills in Single Turn 2 | . 1 . 2 Gunslinging . | . . . . Exploded . | . . . . Melee . | . . . . Uniques/NPCs Destroyed . | . . . . Combat | -11 -10 -10 -9 -------- Run | Scr Mat Min Mat Damage Taken 811 | . 263 483 65 Core 177 | . 11 144 22 Absorbed by Shields . | . . . . Core Remaining (%) 69 | 100 . 38 . Volleys Fired 38 | . 24 . 14 Largest 2 | . 2 . 2 Hottest 124 | . 90 . 124 Shots Fired 65 | . 37 . 28 Gun 51 | . 37 . 14 Cannon 14 | . . . 14 Launcher . | . . . . Special . | . . . . Kinetic 6 | . 6 . . Thermal 59 | . 31 . 28 Explosive . | . . . . Electromagnetic . | . . . . Robot Hit Streak 7 | . 3 . 7 Robot Miss Streak 3 | . 3 . 2 Penetration Max . | . . . . Secondary Targets 1 | . 1 . . Max Gunslinging Chain 1 | . 1 . . Shots Hit Robots 32 | . 14 . 18 Core Hits 11 | . 5 . 6 Critical Hits . | . . . . Critical Kills . | . . . . Critical Parts Destroyed . | . . . . Melee Attacks . | . . . . Impact . | . . . . Slashing . | . . . . Piercing . | . . . . Sneak Attacks . | . . . . Combat Hostiles . | . . . . Follow-up Attacks . | . . . . Damage Inflicted 397 | . 88 . 309 Guns 232 | . 88 . 144 Cannons 163 | . . . 163 Explosions . | . . . . Melee . | . . . . Ramming 2 | . . . 2 Kinetic 8 | . 8 . . Thermal 387 | . 80 . 307 Explosive . | . . . . Electromagnetic . | . . . . Impact . | . . . . Slashing . | . . . . Piercing . | . . . . Highest Corruption . | . . . . Average Corruption . | . . . . Corruption Purged . | . . . . Overload Shots . | . . . . Overflow Damage . | . . . . Projectiles . | . . . . Explosions . | . . . . Melee . | . . . . Knockbacks . | . . . . Impact . | . . . . Kinetic . | . . . . Secondary . | . . . . Self-Inflicted Damage . | . . . . Shots . | . . . . Rammed 1 | . . . 1 Targets Rammed 1 | . . . 1 Kicked . | . . . . Crushed . | . . . . Highest Temperature 282 | . 282 . 270 Average Temperature 136 | . 151 . 118 Received Heat Transfer 390 | . 84 270 36 Effects 2 | . 2 . . Energy Bleed 1 | . 1 . . Interference 1 | . 1 . . Siege Activations . | . . . . Robots Corrupted . | . . . . Combat Hostiles . | . . . . Parts Fried . | . . . . Impact Corruptions . | . . . . Robots Melted . | . . . . Combat Hostiles . | . . . . Parts Melted . | . . . . Heat Transferred 853 | . 187 . 666 Parts Sabotaged . | . . . . Parts Stolen . | . . . . Parts Stripped . | . . . . Power Chain Reactions . | . . . . Missiles Intercepted . | . . . . Alert | -11 -10 -10 -9 ------- Run | Scr Mat Min Mat Peak Influence 136 | . 136 63 136 Initial 48 | . . 48 24 Average 64 | . 78 47 62 Maximum Alert Level . | . . . . Low Security (%) 100 | . 100 100 100 Level 1 . | . . . . Level 2 . | . . . . Level 3 . | . . . . Level 4 . | . . . . Level 5 . | . . . . High Security . | . . . . Max Security . | . . . . Squads Dispatched 4 | . 2 . 2 Investigation 2 | . 1 . 1 Extermination . | . . . . Reinforcement 2 | . 1 . 1 Assault . | . . . . Garrison . | . . . . Intercept . | . . . . Construction Impeded . | . . . . Haulers Reinforced . | . . . . Stealth | -11 -10 -10 -9 --------- Run | Scr Mat Min Mat Distress Signals . | . . . . Communications Jammed . | . . . . Distress Signals . | . . . . Times Spotted 17 | . 8 4 5 Peak Tracking Total 5 | . 3 4 5 Tactical Retreats 2 | . . 1 1 Traps | -11 -10 -10 -9 ------- Run | Scr Mat Min Mat Traps Triggered 1 | . . . 1 Indirectly . | . . . . Trap Hack Attempts . | . . . . Triggered . | . . . . Disarmed . | . . . . Reprogrammed . | . . . . Reused . | . . . . Traps Extracted . | . . . . Installed . | . . . . Triggered . | . . . . Machines | -11 -10 -10 -9 ---------- Run | Scr Mat Min Mat Machines Disabled . | . . . . Max in Single Turn . | . . . . Machines Sabotaged . | . . . . Garrisons Compromised . | . . . . Overloaded Fab Kills . | . . . . Fab Network Shutdowns . | . . . . Hacking | -11 -10 -10 -9 --------- Run | Scr Mat Min Mat Machines Accessed 5 | . 5 . . Terminals 4 | . 4 . . Fabricators . | . . . . Repair Stations . | . . . . Recycling Units 1 | . 1 . . Scanalyzers . | . . . . Garrison Access . | . . . . Total Hacks 7 | . 7 . . Successful 4 | . 4 . . Failed 3 | . 3 . . Catastrophic 1 | . 1 . . Database Lockouts . | . . . . Manual 6 | . 6 . . Terminals 6 | . 6 . . Fabricators . | . . . . Repair Stations . | . . . . Recycling Units 1 | . 1 . . Scanalyzers . | . . . . Garrison Access . | . . . . Terminal Hacks 3 | . 3 . . Branch Access Points 2 | . 2 . . Zone Layout 1 | . 1 . . Fabricator Hacks . | . . . . Repair Station Hacks . | . . . . Recycling Unit Hacks . | . . . . Scanalyzer . | . . . . Garrison Access Hacks . | . . . . Unauthorized Hacks 1 | . 1 . . Terminals . | . . . . Fabricators . | . . . . Repair Stations . | . . . . Recycling Units 1 | . 1 . . Tunnel 1 | . 1 . . Scanalyzers . | . . . . Garrison Access . | . . . . Data Cores Recovered . | . . . . Used . | . . . . Hacking Detections 3 | . 3 . . Full Trace Events . | . . . . Feedback Events . | . . . . Feedback Blocked . | . . . . Robot Schematics Acquired . | . . . . Robots Built . | . . . . Matter . | . . . . Time . | . . . . Total Robot Build Rating . | . . . . Part Schematics Acquired . | . . . . Parts Built . | . . . . Matter . | . . . . Time . | . . . . Total Part Build Rating . | . . . . Parts Repaired . | . . . . Time . | . . . . Parts Recycled . | . . . . Recycled Matter . | . . . . Retrieved Matter . | . . . . Retrieved Components . | . . . . Parts Scanalyzed . | . . . . Part Schematics Acquired . | . . . . Parts Damaged . | . . . . Bothacking | -11 -10 -10 -9 ------------ Run | Scr Mat Min Mat Used RIF Installer . | . . . . Robots Hacked . | . . . . Non-combat . | . . . . Combat . | . . . . Robot Hacks Applied . | . . . . Relay Couplers Released . | . . . . Robots Rewired . | . . . . Allies Hacked . | . . . . Hacks Repelled . | . . . . Allies | -11 -10 -10 -9 -------- Run | Scr Mat Min Mat Total Allies . | . . . . Largest Group . | . . . . Highest-Rated Group . | . . . . Highest-Rated Ally . | . . . . Total Orders . | . . . . Ally Attacks . | . . . . Total Damage . | . . . . Kills . | . . . . Allies Corrupted . | . . . . Allies Melted . | . . . . Intel | -11 -10 -10 -9 ------- Run | Scr Mat Min Mat Robot Analysis Total . | . . . . Derelict Logs Recovered . | . . . . Drone Launches . | . . . . Drone Recoveries . | . . . . Exploration | -11 -10 -10 -9 ------------- Run | Scr Mat Min Mat Turns Passed 525 | . 194 138 193 Spaces Moved 293 | 1 112 91 89 Core . | . . . . Treads 158 | . . 69 89 Legs 135 | 1 112 22 . Wheels . | . . . . Hover . | . . . . Flight . | . . . . Fastest Speed 120 | 120 120 120 160 Average Speed 141 | 120 120 150 160 Slowest Speed 160 | 120 120 160 160 Overloaded Moves . | . . . . Propulsion Burnouts . | . . . . Robots Hopped . | . . . . Cave-ins Triggered . | . . . . Exploration Rate (%) 22 | 2 34 39 16 Regions Visited 3 Branch Regions 1 Pre-discovered Areas 1 | . 1 . . Known Exits Taken 1 | . 1 . . Unknown Exits Taken 2 | 1 . 1 . Scrap Searched . | . . . . Spaces Dug . | . . . . Terrain Destroyed . | . . . . Melee . | . . . . Projectile . | . . . . AOE . | . . . . Terrain Rammed . | . . . . Walls Destroyed . | . . . . Machines Disabled . | . . . . Actions | -11 -10 -10 -9 --------- Run | Scr Mat Min Mat Total 340 | . 136 93 111 Wait 2 | . . . 2 Move 290 | . 111 90 89 Hop . | . . . . Pick Up 3 | . . . 3 Fast Attach . | . . . . Attach 5 | . 1 2 2 Detach . | . . . . Swap . | . . . . Drop 1 | . . 1 . Fire 38 | . 24 . 14 Melee . | . . . . Ram . | . . . . Kick . | . . . . Crush 1 | . . . 1 Escape Stasis . | . . . . Rewire . | . . . . Trap . | . . . . Miscellaneous . | . . . . Route ------- -11/Scrapyard -10/Materials (discovered 2 exits: *Min x2) -10/Mines -9/Materials History --------- Turn | Location | Event 1 | -11/Scrapyard | Discovered new exit (range 0) 1 | -11/Scrapyard | Entered Materials 84 | -10/Materials | Identified exit to Mines 195 | -10/Materials | Entered Mines 269 | -10/Mines | Core integrity fell below 50% 301 | -10/Mines | Build established: Mutant 322 | -10/Mines | Discovered new exit (range 8) 333 | -10/Mines | Entered Materials 333 | -9/Materials | Evolved 2 slots: Utility x2 526 | -9/Materials | Self-destructed Last Messages --------------- 00343_ Acquired Shield Generator. 00382_ Triggered Alarm Trap. 00382_ An alarm sounds. 00382_ ALERT: Alarm triggered, dispatching investigation squad. 00408_ Acquired Particle Cannon. 00417_ Acquired Beam Rifle. 00427_ O-16 Technician uses terminal to summon reinforcements. 00427_ ALERT: Hostiles spotted, dispatching reinforcements to Terminal M009. 00427_ O-16 Technician locks terminal. 00431_ G-34 Mercenary destroyed. 00444_ Acquired 30 matter. 00458_ Terminal unresponsive. 00479_ K-01 Serf collects debris. 00490_ K-01 Serf cleans the Atomic Centrifuge. 00492_ Slammed into A-02 Transporter. 00509_ U-05 Engineer destroyed. 00512_ A-02 Transporter destroyed. 00517_ K-01 Serf collects debris. 00524_ R-06 Scavenger collects Welding Torch. Map ----- +----------------------------------------------------+ | ????????????????????????# """ #??????????##### | | ????????????????????????# #??????????????? | | ????????????????????????####+######??????????????? | | ???????????????????????????# #???????????????????? | | ???????????????????????????#%#???????????????????? | | ???????????????????????????#%#???????????????????? | | ???????????????????????????#=#???????????????????? | | ???????????????????????????#%#???????????????????? | | ???????????????????????????#!#???????????????????? | | ?????????????????????????### ###?????????????????? | | ?????????????????#######?# #?????????????????? | | ?????????????????# ### #?????????????????? | | ?????????????????# + T #?????????????????? | | ?????????????????# ||| ### #?????????????????? | | ?????????????????# ||| #?# #??? ????????????? | | ?????????????????# ||| #?### ###?? ????????????? | | ?????????????????# #???# #??? ?????????????? | | ?????????????????# """ #???# #?? ??????????????? | | ?????????????????# """ ##### #a ???????????????? | | ?????????????????# """ + /o????????????????? | | ?????????????????# ##### #?????????????????? | | ?????????????????# #???? #?????????????????? | | ?????????????????# #???#t ##????????????????? | | ???# ############+####### #????????????????? | | ???+ % r !k ##???????????????? | | ???# r @ !%! Y ????????? | | ???# % !! ##???????????????? | | ????#####+#####+########### ! #????????????????? | | ???????????????????????????## ###????????????????? | | ??????????????????????????????#??????????????????? | | ?????????????????????????????????????????????????? | | ?????????????????????????????????????????????????? | | ?????????????????????????????????????????????????? | | ?????????????????????????????????????????????????? | | ?????????????????????????????????????????????????? | | ?????????????????????????????????????????????????? | | ?????????????????????????????????????????????????? | | ?????????????????????????????????????????????????? | | ?????????????????????????????????????????????????? | | ?????????????????????????????????????????????????? | | ?????????????????????????????????????????????????? | | ?????????????????????????????????????????????????? | | ?????????????????????????????????????????????????? | | ?????????????????????????????????????????????????? | | ?????????????????????????????????????????????????? | | ?????????????????????????????????????????????????? | | ?????????????????????????????????????????????????? | | ?????????????????????????????????????????????????? | | ?????????????????????????????????????????????????? | | ?????????????????????????????????????????????????? | +----------------------------------------------------+ Best States ------------- Heat Dissipation 28 Energy Generation 10 Energy Capacity 250 Matter Stores 300 Matter Capacity 300 Sight Range 16 Terrain Scan Density 10 Evasion (%) 40 Recoil Reduction 2 Item Schematics ----------------- None Robot Schematics ------------------ None Fabricated ------------ Nothing Alien Tech Used ----------------- None Achievements -------------- None Challenges ------------ None Game ------ Seed SmallMachineDerivative Manual? 0 Play Time 00:05:42 Cumulative 137.1 hours Start 2020.12.14 @ 13:41:14 End 2020.12.14 @ 14:15:58 Sessions 1 Manual Loads 0 Difficulty Rogue Special Mode None Game No. 143 Rogue 136 Adventurer 0 Explorer 7 Win Type - Total 2 Types 0/0/2/0/0/0/0/0/0 Lore% 58 Gallery% 85 Achievement% 64 Wizard Run 0 Options --------- ASCII 0 Keyboard 0 Movement Mouse Keybinds 0 Fullscreen 1 Font 18/X11 Map View 76x50 Tactical HUD 1 Map Filters NONE Filters NONE Steam 1 RUN: 58f3dc3a-afd6-4207-bd8e-a11f37d5def5